Cogmind - Beta 16.1 @@@ ROGUE MODE // 2026.03.09 @ 20:16:15 Player: Krysmphoenix Result: Destroyed by H-55 Commando with Gauss Rifle Performance ------------- Evolutions (2) 1000 Regions Visited (5) 1000 Robots Destroyed (35) 175 Value Destroyed (708) 708 Prototype IDs (26) 520 Alien Tech Used (0) 0 Bonus (300) 300 TOTAL SCORE: 3703 Bonus ------- Aligned with FarCom 300 Cogmind --------- Core Integrity 0/550 Matter 284/300 Energy 44/100 System Corruption 0% Temperature Cool (0) Movement Core (50) Location -8/Materials Parts ------- > --- POWER (2) -------- (None) > --- PROPULSION (4) --- (None) > --- UTILITY (3) ------ Heat Sink Improved Signal Interpreter Melee Analysis Suite > --- WEAPON (2) ------- Small Laser > --- INVENTORY (5) ---- Improved Signal Interpreter Datajack Peak State ------------ > --- POWER ------------ Light Ion Engine Backup Power I > --- PROPULSION ------- Flight Unit Flight Unit Cesium-ion Thruster Cesium-ion Thruster > --- UTILITY ---------- Improved Signal Interpreter Melee Analysis Suite Hacking Suite > --- WEAPON ----------- Katana Longsword +1 > --- INVENTORY -------- Heat Sink Improved Signal Interpreter Hardened Light Armor Plating Small Laser Datajack [Rating: 30] Favorites ----------- Power Backup Power I Engine Backup Power I Propulsion Flight Unit Wheel Wheel Hover Unit Hover Unit Flight Unit Flight Unit Utility Improved Heat Sink Device Improved Heat Sink Storage Small Storage Unit Processor Targeting Computer Hackware Hacking Suite Protection Hardened Light Armor Plating Weapon Small Laser Energy Gun Small Laser Ballistic Gun Light Assault Rifle Special Weapon Mining Laser Slashing Weapon Longsword +1 Special Melee Weapon Datajack Build | -11 -10 -10 -10 -9 -8 ------- Run | Yrd Mat Min Exi Min Mat Slots Evolved 4 | . . . . . 4 Power 1 | . . . . . 1 Propulsion 2 | . . . . . 2 Utility 1 | . . . . . 1 Weapon . | . . . . . . Parts Attached 51 | 7 25 1 1 3 14 Power 6 | 1 3 . . 1 1 Engine 6 | 1 3 . . 1 1 Core . | . . . . . . Reactor . | . . . . . . Propulsion 19 | 2 9 1 . . 7 Treads . | . . . . . . Leg . | . . . . . . Wheel 2 | 2 . . . . . Hover 1 | . 1 . . . . Flight 16 | . 8 1 . . 7 Utility 14 | 2 5 . . 1 6 Device 7 | 1 4 . . . 2 Storage 1 | 1 . . . . . Processor 3 | . 1 . . 1 1 Hackware 1 | . . . . . 1 Protection 2 | . . . . . 2 Artifact . | . . . . . . Weapon 12 | 2 8 . 1 1 . Energy Gun 7 | 1 6 . . . . Energy Cannon . | . . . . . . Ballistic Gun 1 | 1 . . . . . Ballistic Cannon . | . . . . . . Launcher . | . . . . . . Special Weapon 1 | . 1 . . . . Impact Weapon . | . . . . . . Slashing Weapon 2 | . . . 1 1 . Piercing Weapon . | . . . . . . Special Melee Weapon 1 | . 1 . . . . Unidentified Prototypes 1 | . . . 1 . . Parts Lost 18 | . 8 . . 2 8 Power 5 | . 3 . . 1 1 Propulsion 8 | . 3 . . . 5 Utility 4 | . 2 . . 1 1 Weapon 1 | . . . . . 1 Highest Loss Streak 8 | . 4 . . 2 8 To Critical Strikes . | . . . . . . Average Backups 4 | 1 3 5 5 4 4 Power . | . . . 1 . . Propulsion 1 | . 1 2 2 2 . Utility . | . . . . . 1 Weapon 1 | . 2 1 1 1 1 Tool/Special . | . . . . . . Unused Backups 7 | . 5 1 . . 1 Power . | . . . . . . Propulsion 2 | . 1 1 . . . Utility 1 | . . . . . 1 Weapon 4 | . 4 . . . . Tool/Special . | . . . . . . Average Slot Usage (%) 94 | . 97 100 100 82 89 Engine 13 | . 12 14 14 9 14 Wheel 7 | . 12 . . . . Hover 1 | . 1 . . . . Flight 20 | . 12 28 28 28 31 Device 14 | . 21 14 14 3 . Processor 9 | . 4 14 14 14 17 Hackware 1 | . . . . . 5 Energy Gun 16 | . 23 28 18 6 . Ballistic Gun 1 | . 2 . . . . Slashing Weapon 5 | . . . 9 20 14 Special Melee Weapon 1 | . 1 . . . 2 Peak Build Rating 30 | 7 9 9 16 17 30 Average Rating 12 | 4 7 9 13 15 26 On Entrance 9 | . 7 9 9 16 17 Avg Prop Armor Cover (%) 7 | . 7 . . . . Naked Turns . | . . . . . . Heaviest Build 14 | 14 14 4 6 8 14 Greatest Support 22 | 20 20 8 8 8 22 Greatest Overweight (x) 2 | . 2 . . . . Average Overweight (x) . | . . . . . . Largest Inventory Capacity 8 | 8 8 5 5 5 5 Average Capacity 5 | 7 5 5 5 5 5 Most Carried 5 | 5 5 5 5 5 5 Average Carried 4 | 1 3 4 4 4 4 Final Capacity 8 | 8 5 5 5 5 5 Final Carried 5 | 1 5 5 5 4 2 Class Distribution -------------------- 76% | Mutant 15% | Scavenger-Sprinter 4% | Sprinter 3% | Scavenger-Gladiator Dominant Class ---------------- Mutant | -10/Materials Mutant | -10/Mines Mutant | -10/Exiles Scavenger-Gladiator | -9/Mines Scavenger-Sprinter | -8/Materials Resources | -11 -10 -10 -10 -9 -8 ----------- Run | Yrd Mat Min Exi Min Mat Matter Collected 774 | 229 309 12 . 30 194 Remotely 87 | . 87 . . . . Salvage Created 1077 | 90 454 41 . 151 341 Parts 75 | 5 27 8 . 6 29 Haulers Intercepted . | . . . . . . Recyclers Shooed . | . . . . . . Parts Field Recycled . | . . . . . . Retrieved Matter . | . . . . . . Parts Self-Destructed . | . . . . . . Prevented . | . . . . . . Parts Restored . | . . . . . . Kills | -11 -10 -10 -10 -9 -8 ------- Run | Yrd Mat Min Exi Min Mat Combat Hostiles Destroyed 31 | . 15 3 . 3 10 Melee 13 | . . . . 3 10 Guns 18 | . 15 3 . . . Classes Destroyed 8 | 2 2 . . 1 3 Worker 1 | . . . . . 1 Tunneler 1 | 1 . . . . . Recycler 2 | 1 . . . . 1 Swarmer 15 | . 7 3 . . 5 Cutter 3 | . . . . . 3 Grunt 10 | . 8 . . 2 . Duelist 1 | . . . . 1 . Sentry 2 | . . . . . 2 Best Kill Streak 5 | 2 3 3 . 3 5 Combat Bots Only 5 | . 3 3 . 3 5 Max Kills in Single Turn 2 | 1 2 1 . 1 1 Gunslinging 1 | . 1 . . . . Exploded . | . . . . . . Melee 1 | . . . . 1 1 Uniques/NPCs Destroyed . | . . . . . . Combat | -11 -10 -10 -10 -9 -8 -------- Run | Yrd Mat Min Exi Min Mat Hostile Shots Fired 179 | . 64 10 . 15 90 Missed 60 | . 22 6 . 3 29 Hits 119 | . 42 4 . 12 61 Melee 10 | . . . . 1 9 Projectile 109 | . 42 4 . 11 52 AOE 1 | . 1 . . . . Critical Strikes 6 | . . . . . 6 Damage Taken 1763 | . 675 35 . 162 891 Core 701 | . 134 . . 11 556 Absorbed by Shields . | . . . . . . Regen/Repaired (Parts) 14 | . . . . . 14 Core Remaining (%) 71 | 100 . . . 42 . Volleys Fired 57 | 8 43 4 . . 2 Largest 2 | 2 2 2 . . 1 Hottest 140 | 70 140 80 . . 40 Shots Fired 112 | 16 86 8 . . 2 Gun 111 | 16 85 8 . . 2 Cannon . | . . . . . . Launcher . | . . . . . . Special 1 | . 1 . . . . Kinetic 16 | 8 8 . . . . Thermal 96 | 8 78 8 . . 2 Explosive . | . . . . . . Electromagnetic . | . . . . . . Robot Hit Streak 12 | 5 12 2 . . 3 Robot Miss Streak 4 | 1 4 1 . . 1 Penetration Max . | . . . . . . Secondary Targets 2 | . 2 . . . . Max Gunslinging Chain 1 | . 1 . . . . Shots Hit Robots 123 | 11 66 4 . 10 32 Core Hits 48 | 4 24 3 . 3 14 Critical Kills . | . . . . . . Critical Parts Destroyed . | . . . . . . Critical Strikes 6 | . 4 . . 2 . Burn 4 | . 4 . . . . Sever 2 | . . . . 2 . Melee Attacks 54 | . . . . 12 42 Impact . | . . . . . . Slashing 52 | . . . . 12 40 Piercing . | . . . . . . Sneak Attacks 4 | . . . . 1 3 Combat Hostiles 1 | . . . . 1 . Follow-up Attacks 4 | . . . . . 4 Damage Inflicted 2752 | 113 761 45 . 492 1341 Guns 922 | 113 753 45 . . 11 Cannons . | . . . . . . Explosions 8 | . 8 . . . . Melee 1822 | . . . . 492 1330 Ramming . | . . . . . . Kinetic 102 | 49 53 . . . . Thermal 820 | 64 700 45 . . 11 Explosive 8 | . 8 . . . . Electromagnetic . | . . . . . . Impact . | . . . . . . Slashing 1822 | . . . . 492 1330 Piercing . | . . . . . . Highest Corruption . | . . . . . . Average Corruption . | . . . . . . Corruption Purged . | . . . . . . Corruption Blocked . | . . . . . . Overload Shots . | . . . . . . Overflow Damage 162 | . 35 . . 17 110 Projectiles . | . . . . . . Explosions 35 | . 35 . . . . Melee 127 | . . . . 17 110 Knockbacks . | . . . . . . Impact . | . . . . . . Kinetic . | . . . . . . Secondary . | . . . . . . Self-Inflicted Damage 80 | . 80 . . . . Shots 1 | . 1 . . . . Rammed . | . . . . . . Targets Rammed . | . . . . . . Kicked . | . . . . . . Crushed . | . . . . . . Highest Temperature 245 | 90 245 . . . 8 Average Temperature 59 | 36 98 . . . 3 Received Heat Transfer 234 | . 159 . . 66 9 Siege Activations . | . . . . . . Martial Activations . | . . . . . . Shielding Activations . | . . . . . . Robots Disrupted . | . . . . . . Combat Hostiles . | . . . . . . Robots Corrupted . | . . . . . . Combat Hostiles . | . . . . . . Parts Fried . | . . . . . . Impact Corruptions . | . . . . . . Robots Melted . | . . . . . . Combat Hostiles . | . . . . . . Parts Melted 2 | . 2 . . . . Heat Transferred 2406 | 185 2096 100 . . 25 Parts Sabotaged . | . . . . . . Parts Stolen . | . . . . . . Parts Stripped . | . . . . . . Power Chain Reactions . | . . . . . . Alert | -11 -10 -10 -10 -9 -8 ------- Run | Yrd Mat Min Exi Min Mat Maximum Alert Level . | . . . . . . Low Security (%) 100 | 100 100 100 . 100 100 Level 1 . | . . . . . . Level 2 . | . . . . . . Level 3 . | . . . . . . Level 4 . | . . . . . . Level 5 . | . . . . . . High Security . | . . . . . . Max Security . | . . . . . . Peak Influence 125 | 5 106 98 . 50 125 Initial 28 | . . 28 . . 11 Average 34 | 1 34 79 . 35 35 Influence Increases 875 | 10 438 70 . 70 287 Destroy 0b10 Robot/C 620 | . 300 60 . 60 200 Destroy 0b10 Robot/NC 20 | 10 . . . . 10 Destroy Leader 110 | . 40 10 . 10 50 Successful Hack 34 | . 22 . . . 12 Disable Machine 15 | . 15 . . . . Destroy Structure 31 | . 31 . . . . Partial Spotted 15 | . 15 . . . . Lose Combat Pursuer 30 | . 15 . . . 15 Influence Decreases 810 | 10 365 65 78 40 252 Entered New Map 142 | . . 45 78 . 19 Time Decay 458 | 10 285 20 . 30 113 Lost Part 170 | . 80 . . 10 80 Purge Threat 40 | . . . . . 40 Squads Dispatched 6 | . 2 . . . 4 Investigation 2 | . 1 . . . 1 Extermination . | . . . . . . Reinforcement 4 | . 1 . . . 3 Assault . | . . . . . . Garrison . | . . . . . . Intercept . | . . . . . . Searches Triggered . | . . . . . . Construction Impeded . | . . . . . . Haulers Reinforced . | . . . . . . Active Scanning Responses . | . . . . . . Cargo Convoy Interrupts . | . . . . . . Stealth | -11 -10 -10 -10 -9 -8 --------- Run | Yrd Mat Min Exi Min Mat Distress Signals 2 | . 2 . . . . Communications Jammed . | . . . . . . Distress Signals . | . . . . . . Times Spotted 55 | . 33 3 . 3 16 Peak Tracking Total 5 | . 5 3 . 3 5 Tactical Retreats 2 | . 1 . . . 1 Traps | -11 -10 -10 -10 -9 -8 ------- Run | Yrd Mat Min Exi Min Mat Traps Triggered 3 | . 3 . . . . Indirectly . | . . . . . . Trap Hack Attempts . | . . . . . . Triggered . | . . . . . . Disarmed . | . . . . . . Reprogrammed . | . . . . . . Reused . | . . . . . . Traps Extracted . | . . . . . . Installed . | . . . . . . Triggered . | . . . . . . Machines | -11 -10 -10 -10 -9 -8 ---------- Run | Yrd Mat Min Exi Min Mat Machines Disabled 1 | . 1 . . . . Max in Single Turn 1 | . 1 . . . . Machines Repaired . | . . . . . . Machines Dismantled . | . . . . . . Machines Sabotaged . | . . . . . . Overloaded Fab Kills . | . . . . . . Hacking | -11 -10 -10 -10 -9 -8 --------- Run | Yrd Mat Min Exi Min Mat Machines Accessed 15 | . 10 . 1 . 4 Terminals 10 | . 8 . . . 2 Fabricators . | . . . . . . Repair Stations 2 | . 1 . . . 1 Recycling Units 1 | . 1 . . . . Scanalyzers 1 | . . . . . 1 Garrison Access . | . . . . . . Total Hacks 38 | . 23 . 1 . 14 Successful 26 | . 13 . 1 . 12 Failed 11 | . 9 . . . 2 Catastrophic . | . . . . . . Database Lockouts 1 | . 1 . . . . Manual 22 | . 18 . 1 . 3 Terminals 27 | . 20 . . . 7 Fabricators . | . . . . . . Repair Stations 6 | . 2 . . . 4 Recycling Units 1 | . 1 . . . . Scanalyzers 3 | . . . . . 3 Garrison Access . | . . . . . . Terminal Hacks 9 | . 4 . 1 . 4 Record 1 | . . . . . 1 Prototype ID Bank 2 | . 2 . . . . Branch Access Points 1 | . 1 . . . . Alert Level 2 | . 1 . . . 1 Unreport Threat 2 | . . . . . 2 Proto ID Catalog 1 | . . . 1 . . Fabricator Hacks . | . . . . . . Repair Station Hacks 4 | . 1 . . . 3 Scan Component 1 | . . . . . 1 Repair 1 | . . . . . 1 Refit 2 | . 1 . . . 1 Recycling Unit Hacks 1 | . 1 . . . . Report Inventory 1 | . 1 . . . . Scanalyzer 3 | . . . . . 3 Retrieve Study 3 | . . . . . 3 Garrison Access Hacks . | . . . . . . Unauthorized Hacks 9 | . 7 . . . 2 Terminals 9 | . 7 . . . 2 Botnet 9 | . 7 . . . 2 Fabricators . | . . . . . . Repair Stations . | . . . . . . Recycling Units . | . . . . . . Scanalyzers . | . . . . . . Garrison Access . | . . . . . . Data Cores Recovered . | . . . . . . Used . | . . . . . . Hacking Detections 12 | . 9 . . . 3 Full Trace Events 1 | . . . . . 1 Feedback Events . | . . . . . . Feedback Blocked . | . . . . . . Robot Schematics Acquired . | . . . . . . Robots Built . | . . . . . . Authchips . | . . . . . . Time . | . . . . . . Total Robot Build Rating . | . . . . . . Part Schematics Acquired . | . . . . . . Parts Built . | . . . . . . Authchips . | . . . . . . Time . | . . . . . . Total Part Build Rating . | . . . . . . Part Studies Acquired 3 | . . . . . 3 Parts Repaired 1 | . . . . . 1 Time 26 | . . . . . 26 Parts Recycled . | . . . . . . Recycled Matter . | . . . . . . Retrieved Matter . | . . . . . . Retrieved Components . | . . . . . . Parts Scanalyzed . | . . . . . . Part Schematics Acquired . | . . . . . . Parts Damaged . | . . . . . . Bothacking | -11 -10 -10 -10 -9 -8 ------------ Run | Yrd Mat Min Exi Min Mat Used RIF Installer . | . . . . . . Robots Hacked . | . . . . . . Non-combat . | . . . . . . Combat . | . . . . . . Robot Hacks Applied . | . . . . . . Relay Couplers Released . | . . . . . . Fabnet Peak Effective % . | . . . . . . Robots Rewired . | . . . . . . Allies Hacked . | . . . . . . Hacks Repelled . | . . . . . . Allies | -11 -10 -10 -10 -9 -8 -------- Run | Yrd Mat Min Exi Min Mat Total Allies . | . . . . . . Largest Group . | . . . . . . Highest-Rated Group . | . . . . . . Highest-Rated Ally . | . . . . . . Total Orders . | . . . . . . Ally Attacks . | . . . . . . Total Damage . | . . . . . . Kills . | . . . . . . Allies Corrupted . | . . . . . . Allies Melted . | . . . . . . Intel | -11 -10 -10 -10 -9 -8 ------- Run | Yrd Mat Min Exi Min Mat Active Infowar (turns) 338 | 10 324 . . . 4 Sensors 4 | . . . . . 4 Seismic 334 | 10 324 . . . . Robot Analysis Total . | . . . . . . Derelict Logs Recovered 1 | . . . . 1 . Drone Launches . | . . . . . . Drone Recoveries . | . . . . . . Exploration | -11 -10 -10 -10 -9 -8 ------------- Run | Yrd Mat Min Exi Min Mat Turns Passed 1607 | 82 872 46 162 79 366 Spaces Moved 2303 | 57 1073 79 430 133 531 Core 14 | 4 5 . . . 5 Treads . | . . . . . . Legs . | . . . . . . Wheels 411 | 53 358 . . . . Hover . | . . . . . . Flight 1878 | . 710 79 430 133 526 Fastest Speed 28 | 50 37 37 37 37 28 Average Speed 43 | 77 53 37 37 37 28 Slowest Speed 150 | 80 150 37 37 37 50 Overloaded Moves . | . . . . . . Propulsion Burnouts . | . . . . . . Robots Hopped 6 | . 6 . . . . Potential Cave-ins . | . . . . . . Cave-ins Triggered . | . . . . . . Exploration Rate (%) 45 | 4 99 20 87 35 27 Regions Visited 5 Branch Regions 3 Pre-discovered Areas . | . . . . . . Known Exits Taken 1 | . 1 . . . . Unknown Exits Taken 4 | 1 . 1 1 1 . Scrap Searched 2 | . . . . 2 . Spaces Dug 1 | . 1 . . . . Terrain Destroyed 33 | . 33 . . . . Melee . | . . . . . . Projectile 1 | . 1 . . . . AOE 32 | . 32 . . . . Terrain Rammed . | . . . . . . Walls Destroyed . | . . . . . . Machines Disabled . | . . . . . . Actions | -11 -10 -10 -10 -9 -8 --------- Run | Yrd Mat Min Exi Min Mat Total 2733 | 79 1286 87 432 150 699 Wait 168 | . 92 . . . 76 Move 2287 | 56 1061 78 429 132 531 Hop 5 | . 5 . . . . Pick Up 66 | 8 34 2 1 2 19 Fast Attach . | . . . . . . Attach 34 | 7 13 . . 2 12 Detach . | . . . . . . Swap 29 | . 15 1 1 1 11 Drop 38 | . 23 2 1 1 11 Fire 57 | 8 43 4 . . 2 Melee 49 | . . . . 12 37 Ram . | . . . . . . Kick . | . . . . . . Crush . | . . . . . . Escape Stasis . | . . . . . . Rewire . | . . . . . . Trap . | . . . . . . Miscellaneous . | . . . . . . Route ------- -11/Scrapyard -10/Materials (discovered 4 exits: [*Mat x3] / *Min) -10/Mines -10/Exiles -9/Mines -8/Materials (discovered 1 exit: [*Fac]) History --------- Turn | Location | Event 11 | -11/Scrapyard | Discovered new exit (range 15) 83 | -11/Scrapyard | Entered Materials 251 | -10/Materials | Discovered new exit (range 7) 302 | -10/Materials | Build established: Mutant 346 | -10/Materials | Discovered new exit (range 16) 451 | -10/Materials | Central database locked down 517 | -10/Materials | Discovered new exit (range 16) 560 | -10/Materials | Identified exit to Mines 658 | -10/Materials | Lost 4 parts (1p1n2u) 680 | -10/Materials | Core integrity fell below 50% 685 | -10/Materials | Discovered new exit (range 16) 710 | -10/Materials | Lost 3 parts (1p2n) 955 | -10/Materials | Entered Mines 999 | -10/Mines | Deemed a non-threat by the Exiles lab entrance 999 | -10/Mines | Discovered new exit (range 5) 1001 | -10/Mines | Entered Exiles 1010 | -10/Exiles | Met 8R-AWN 1016 | -10/Exiles | Met EX-HEX 1028 | -10/Exiles | Met EX-BIN 1033 | -10/Exiles | Aligned with FarCom system 1033 | -10/Exiles | Given EX-Vault access code 1045 | -10/Exiles | Opened EX-Vault 1048 | -10/Exiles | Found Prototype Slashing Weapon 1049 | -10/Exiles | Identified Longsword +1 1066 | -10/Exiles | Warned to stay clear of 0b10 Research branches 1079 | -10/Exiles | Met EX-DEC 1092 | -10/Exiles | Visited The Gauntlet 1159 | -10/Exiles | Discovered new exit (range 14) 1163 | -10/Exiles | Left Exiles lab with Longsword +1 1163 | -10/Exiles | Entered Mines 1183 | -9/Mines | Met a Derelict bent on vengeance 1221 | -9/Mines | Learned Materials emergency access door positions 1240 | -9/Mines | Discovered new exit (range 6) 1242 | -9/Mines | Entered Materials 1242 | -8/Materials | Evolved 4 slots: Power x1, Propulsion x2, Utility x1 1416 | -8/Materials | Repaired Flight Unit 1583 | -8/Materials | Discovered new exit (range 9) 1591 | -8/Materials | Core integrity fell below 50% 1597 | -8/Materials | Core integrity fell below 20% 1608 | -8/Materials | Destroyed by H-55 Commando with Gauss Rifle Last Messages --------------- 01583_ Hacking Suite destroyed. 01583_ Critical hit (Blast). 01583_ Knocked back. 01584_ S-10 Pest destroyed. 01587_ Slug penetrates Wall. 01587_ Surge Thruster destroyed. 01587_ U-05 Engineer builds a Wall. 01589_ Acquired Longsword +1. 01590_ Slug penetrates Wall. 01592_ Katana destroyed. 01593_ Slug penetrates Wall. 01598_ Longsword +1 blasted off. 01599_ H-61 Shepherd destroyed. 01601_ Acquired 14 matter. 01602_ Slug penetrates Atomic Centrifuge. 01602_ Acquired Cesium-ion Thruster+. 01605_ Slug penetrates Atomic Centrifuge. 01605_ Penetrated by Slug. 01605_ Cesium-ion Thruster+ destroyed. 01608_ Penetrated by Slug. Map ----- +----------------------------------------------------+ | %/[= ## """"" ########??????? | | #""" % ## """ #????????????? | | #"R ## #????????????? | | #""" + #????????????? | | # ###+###### #????????????? | | ########## ## ###########???? | | ########## ## # ! #???? | | + """ ## + #???? | | ########## """ ## # """ #???? | | #????????# """ + # """"" #???? | | ########## ### ## """"" #???? | | ## [ # """ #?# ## ! """"" #???? | | ## [ ] # """ #?# ## "" #???? | | !%+ # """ #?# ## !=!% #???? | | ## """ # #?# ####### ####???? | | ## """ # ###+####??###??????? | | # ### """ ########## #???????????? | | # #?# #????????# #???????????? | | # #?# "S #????????# #???????????? | | # #?# """ #????????#""" #???????????? | | # #?# "" #????????#""" #???????????? | | # #?# #????????#""" #???????????? | | # #?#####+###????????# ########????? | | #+#????# ########??#"" =# #????? | | ? ????# # """ ""??#" **#!] #????? | | ? ????# # """ ""??# %@=#%* " #????? | | ? ????# + """ ""??#!!*= /h]! T #????? | | ?""????# # #==*%/#%= " #????? | | ?"?????# # !###/###*! #????? | | ???????# ###########*/h ?###+####????? | | ???????# ???????? == ???? ??????? | | ???????# ??????? T ????? < ?????? | | ???????# ????? u ?????? #????? | | ???????######???###### ??????##????? | | ?????????????????????## #????????????? | | ??????????????????????# #????????????? | | ??????????????????????#u #????????????? | | ?????????????gg???????/ #????????????? | | ?????????????????????g# #????????????? | | ??????????????????????? ?????????????? | | ???????????????????????????????????????? | | ???????????????????????????????????????? | | ???????????????????????????????????????? | | ???????????????????????????????????????? | | ???????????????????????????????????????? | | ???????????????????????????????????????? | | ???????????????????????????????????????? | | ???????????????????????????????????????? | | ???????????????????????????????????????? | | ???????????????????????????????????????? | +----------------------------------------------------+ Best States ------------- Heat Dissipation 45 Energy Generation 15 Energy Capacity 250 Matter Stores 300 Matter Capacity 300 Sight Range 16 Robot Scan Range 15 Terrain Scan Density 10 Armor Coverage 150 Evasion (%) 64 Targeting Accuracy 5 Melee Accuracy 5 Offensive Hacking 10 Item Schematics ----------------- None Robot Schematics ------------------ None Fabricated ------------ Nothing Repaired ---------- Flight Unit | 30% | -8/Materials Studied --------- Flight Unit | -8/Materials | Hacked Cesium-ion Thruster | -8/Materials | Hacked Lgt. Ion Engine | -8/Materials | Hacked Alien Tech Used ----------------- None Achievements -------------- I Spy Challenges ------------ None Game ------ Seed TargetLightningStabilizer Manual? 0 Play Time 00:35:31 Cumulative 18.2 hours Start 2026.03.09 @ 19:37:32 End 2026.03.09 @ 20:16:15 Sessions 1 Manual Loads 0 Difficulty Rogue Special Mode None Game No. 31 Rogue 28 Adventurer 3 Explorer 0 Win Type - Total 1 Types 1/0/0/0/0/0/0/0/0/0 Lore% 22 Gallery% 18 Achievement% 21 Wizard Run 0 Options --------- Layout 1 ASCII 0 Keyboard 0 Movement Numpad Keybinds 0 Fullscreen 2 Font 24/Proggy Map View 50x35 Zoom Use 0% Tactical HUD 1 Map Filters NONE Filters NONE Steam 1 RUN: ff112137-b668-4a4a-a644-e126dc2afe75